bitfinex/quotes_BTCUSD_20250624
["timestamp","ask_amount","ask_price","bid_price","bid_amount"]
[1750728164815,0.55303848,105200.0,105190.0,0.00524611]
[1750728165042,0.55303848,105200.0,105190.0,0.01475271]
[1750728165242,0.55303848,105200.0,105190.0,0.00524611]
[1750728165623,0.55303848,105200.0,105190.0,0.01475271]
[1750728166556,0.21194085,105200.0,105190.0,0.22389751]
[1750728167244,0.55193848,105200.0,105190.0,0.00524611]
[1750728170484,0.55193848,105200.0,105190.0,0.01475262]
[1750728170691,0.55193848,105200.0,105190.0,0.01475271]
[1750728170890,0.55193848,105200.0,105190.0,0.00524611]
[1750728171732,0.55193848,105200.0,105190.0,0.02425904]
[1750728171940,0.52313848,105200.0,105190.0,0.22389751]
[1750728172158,0.23904085,105200.0,105190.0,0.23340375]
[1750728172575,0.23904085,105200.0,105190.0,0.21439118]
[1750728172786,0.23904085,105200.0,105190.0,0.20488476]
[1750728172994,0.23904085,105200.0,105190.0,0.22389751]
[1750728173626,0.23904085,105200.0,105190.0,0.21439118]
[1750728173872,0.21194085,105200.0,105190.0,0.22389733]
[1750728174082,0.01554085,105200.0,105190.0,0.22389742]
[1750728174295,0.21190085,105200.0,105190.0,0.22389742]
[1750728174540,0.001,105200.0,105190.0,0.27120954]
[1750728174741,0.04156,105200.0,105190.0,0.30040954]
[1750728175581,0.001,105200.0,105190.0,0.30040954]
[1750728175801,0.04156,105200.0,105190.0,0.58450717]
[1750728176216,0.04156,105200.0,105190.0,0.30040954]
[1750728176507,0.001,105200.0,105190.0,0.30040954]
[1750728176711,0.04156,105200.0,105190.0,0.30040954]
[1750728176915,0.04156,105200.0,105190.0,0.24290963]
[1750728177141,0.04156,105200.0,105190.0,0.23340312]
[1750728177352,0.04156,105200.0,105190.0,0.24290909]
[1750728178725,0.07066,105200.0,105190.0,0.24290909]
[1750728179134,0.07066,105200.0,105190.0,0.21439082]
[1750728179463,0.0301,105200.0,105190.0,0.21439082]
[1750728179667,0.07066,105200.0,105190.0,0.21439082]
[1750728179881,0.07066,105200.0,105190.0,0.23340285]
[1750728181426,0.04156,105200.0,105190.0,0.3361637]
[1750728181563,0.04156,105200.0,105190.0,0.3630637]
[1750728181769,0.04156,105200.0,105190.0,0.64716133]
[1750728181968,0.001,105200.0,105190.0,0.64716133]
[1750728182213,0.001,105200.0,105190.0,1.23846319]
[1750728182421,0.001,105200.0,105190.0,0.96368457]
[1750728182624,0.001,105200.0,105190.0,1.55091983]
[1750728183112,0.001,105200.0,105190.0,1.2668222]
[1750728183303,0.001,105200.0,105190.0,1.2638222]
[1750728184524,0.04052,105230.0,105220.0,0.21858852]
[1750728184732,0.04052,105230.0,105220.0,0.53108615]
[1750728185148,0.04052,105230.0,105220.0,0.24698852]
[1750728185354,0.04052,105230.0,105220.0,0.53108615]
[1750728187142,0.04052,105230.0,105220.0,0.53308615]
[1750728188560,0.0573,105250.0,105240.0,0.1995437]
[1750728188799,0.04052,105250.0,105240.0,0.21854687]
[1750728188965,0.44096,105260.0,105250.0,0.21852657]
[1750728189166,0.59152271,105260.0,105250.0,0.23752776]
[1750728189377,0.86107949,105260.0,105250.0,0.23752776]
[1750728189578,0.86107949,105260.0,105250.0,0.20802584]
[1750728189835,0.87566655,105260.0,105250.0,0.21752666]
[1750728190026,0.88510476,105260.0,105250.0,0.21752666]
[1750728190324,0.88510476,105260.0,105250.0,0.22702739]
[1750728190546,0.88710476,105260.0,105250.0,0.00950118]
[1750728190746,0.83060476,105260.0,105240.0,0.20904497]
[1750728190948,0.0553,105250.0,105240.0,0.20904497]
[1750728191148,0.0553,105250.0,105240.0,0.21854624]
[1750728193171,0.0272,105250.0,105240.0,0.21854624]
[1750728193937,0.60240713,105260.0,105250.0,0.21852621]
[1750728194133,0.88450476,105260.0,105250.0,0.21852621]
[1750728194528,0.88450476,105260.0,105250.0,0.2185263]
[1750728194776,0.88450476,105260.0,105250.0,0.22802685]
[1750728194960,0.88550476,105260.0,105250.0,0.21852639]
[1750728195160,0.88550476,105260.0,105250.0,0.20902566]
[1750728195614,0.88450476,105260.0,105250.0,0.20902566]
[1750728196011,0.88550476,105260.0,105250.0,0.21852639]
[1750728196423,0.88550476,105260.0,105250.0,0.22802694]
[1750728196823,0.60140713,105260.0,105250.0,0.22802694]
[1750728196949,0.88550476,105260.0,105250.0,0.22802694]
[1750728197150,0.88850476,105260.0,105250.0,0.22802694]
[1750728197943,0.69202476,105260.0,105250.0,0.22802694]
[1750728198151,0.45600621,105260.0,105250.0,0.22802694]
[1750728198354,0.45200621,105260.0,105250.0,0.22802694]
[1750728198579,0.04066621,105260.0,105250.0,0.61618542]
[1750728198785,0.04066621,105260.0,105250.0,0.64518542]
[1750728199608,0.00014621,105260.0,105250.0,0.64518542]
[1750728200581,0.00014621,105260.0,105250.0,0.74068728]
[1750728200777,0.00014621,105260.0,105250.0,0.74168728]
[1750728201184,0.00014621,105260.0,105250.0,0.28642694]
[1750728201431,0.00014621,105260.0,105250.0,0.25742694]
[1750728202260,0.00014621,105260.0,105250.0,0.25642694]
[1750728203104,0.00114621,105260.0,105250.0,0.25942694]
[1750728203511,0.00014621,105260.0,105250.0,0.25642694]
[1750728203938,0.00114621,105260.0,105250.0,0.54452457]
[1750728204967,0.00114621,105260.0,105250.0,0.26042694]
[1750728205185,0.00114621,105260.0,105250.0,0.57322457]
[1750728205396,0.00114621,105260.0,105250.0,0.66872643]
[1750728206851,0.00114621,105260.0,105250.0,0.3846288]
[1750728207056,0.00114621,105260.0,105250.0,0.66872643]
[1750728208294,0.00114621,105260.0,105250.0,0.67072643]
[1750728208712,0.00114621,105260.0,105250.0,0.66872643]
[1750728208907,0.00114621,105260.0,105250.0,0.3886288]
[1750728209109,0.00114621,105260.0,105250.0,0.67272643]
[1750728209541,0.00114621,105260.0,105250.0,0.64402643]
[1750728209746,0.00114621,105260.0,105250.0,0.39174694]
[1750728210136,0.03014621,105260.0,105250.0,0.39174694]
[1750728210540,0.34324384,105260.0,105250.0,0.19802375]
[1750728210747,0.34324384,105260.0,105250.0,0.008]
[1750728211006,0.34324384,105260.0,105250.0,0.02700227]
[1750728211248,0.34324384,105260.0,105250.0,0.008]
[1750728211465,0.51370469,105260.0,105250.0,0.008]
[1750728212329,0.51270469,105260.0,105250.0,0.004]
[1750728212562,0.22860706,105260.0,105250.0,0.004]
[1750728212783,0.22860706,105260.0,105250.0,0.005]
[1750728212995,0.51270469,105260.0,105250.0,0.005]
[1750728213620,0.51270469,105260.0,105250.0,0.001]
[1750728214437,0.51270469,105260.0,105250.0,0.010501]
[1750728215007,0.51270469,105260.0,105250.0,0.01050109]
[1750728215261,0.51270469,105260.0,105250.0,0.02000209]
[1750728215428,0.51270469,105260.0,105250.0,0.01050109]
[1750728215637,0.51270469,105260.0,105250.0,0.02000209]
[1750728215834,0.51270469,105260.0,105250.0,0.21952675]
[1750728216014,0.60820655,105260.0,105250.0,0.01050118]
[1750728216216,0.60820655,105260.0,105250.0,0.001]
[1750728216421,0.60820655,105260.0,105250.0,0.02000218]
[1750728216618,0.60820655,105260.0,105250.0,0.01050118]
[1750728216826,0.60820655,105260.0,105250.0,0.02000227]
[1750728217231,0.60820655,105260.0,105250.0,0.01050118]
[1750728217620,0.60820655,105260.0,105250.0,0.001]
[1750728218067,0.32410892,105260.0,105250.0,0.001]
[1750728218296,0.60820655,105260.0,105250.0,0.001]
[1750728221311,0.32410892,105260.0,105250.0,0.001]
[1750728221517,0.60820655,105260.0,105250.0,0.001]
[1750728222342,0.60820655,105260.0,105250.0,0.01050109]
[1750728222772,0.60820655,105260.0,105250.0,0.001]
[1750728222978,0.60820655,105260.0,105250.0,0.01050118]
[1750728223676,0.60820655,105260.0,105250.0,0.001]
[1750728224161,0.60820655,105260.0,105250.0,0.01050118]
[1750728224803,0.60820655,105260.0,105250.0,0.001]
[1750728225756,0.60820655,105260.0,105250.0,0.01050118]
[1750728226192,0.60820655,105260.0,105250.0,0.001]
[1750728228015,0.60820655,105260.0,105250.0,0.01050118]
[1750728228231,0.60820655,105260.0,105250.0,0.02000227]
[1750728228654,0.60820655,105260.0,105250.0,0.01050118]
[1750728229039,0.60820655,105260.0,105250.0,0.001]
[1750728239632,0.98017087,105260.0,105250.0,0.001]
[1750728239835,1.01734164,105260.0,105250.0,0.001]
[1750728241737,0.99954074,105260.0,105250.0,0.001]
[1750728241951,1.01732428,105260.0,105250.0,0.001]
[1750728242596,0.99954074,105260.0,105250.0,0.001]
[1750728246512,0.84362074,105260.0,105250.0,0.001]
[1750728246715,0.71846007,105260.0,105250.0,0.001]
[1750728247067,0.73300092,105260.0,105250.0,0.001]
[1750728247267,1.0025577,105260.0,105250.0,0.001]
[1750728247672,1.01709855,105260.0,105250.0,0.001]
[1750728249526,0.73300092,105260.0,105250.0,0.001]
[1750728249722,1.01709855,105260.0,105250.0,0.001]
[1750728251246,0.73300092,105260.0,105250.0,0.001]
[1750728251440,1.01709855,105260.0,105250.0,0.001]
[1750728253084,0.73300092,105260.0,105250.0,0.001]
[1750728253311,1.01709855,105260.0,105250.0,0.001]
[1750728259565,0.82085855,105260.0,105250.0,0.001]
[1750728259750,0.98813855,105260.0,105250.0,0.01050118]
[1750728260536,1.01613855,105260.0,105250.0,0.001]
[1750728261044,0.73204092,105260.0,105250.0,0.001]
[1750728261251,1.01613855,105260.0,105250.0,0.001]
[1750728262306,0.98813855,105260.0,105250.0,0.01050118]
[1750728263156,0.98813855,105260.0,105250.0,0.02000227]
[1750728263363,0.98813855,105260.0,105250.0,0.001]
[1750728265848,0.95956655,105260.0,105250.0,0.001]
[1750728268397,0.47918892,105260.0,105250.0,0.21952621]
[1750728268571,0.21092706,105260.0,105250.0,0.24702621]
[1750728268984,0.21092706,105260.0,105250.0,0.2470263]
[1750728269179,0.21092706,105260.0,105250.0,0.25652685]
[1750728269596,0.21092706,105260.0,105250.0,0.28392685]
[1750728269794,0.21092706,105260.0,105250.0,0.2470263]
[1750728270025,0.49502469,105260.0,105250.0,0.21952639]
[1750728270177,0.52252469,105260.0,105250.0,0.21952639]
[1750728270562,0.32628469,105260.0,105250.0,0.22902703]
[1750728270762,0.32628469,105260.0,105250.0,0.21002566]
[1750728270964,0.32628469,105260.0,105250.0,0.21952639]
[1750728271220,0.52252469,105260.0,105250.0,0.21002566]
[1750728271402,0.52252469,105260.0,105250.0,0.21952639]
[1750728271897,0.52252469,105260.0,105250.0,0.21002575]
[1750728272117,0.52252469,105260.0,105250.0,0.2290273]
[1750728272311,0.52252469,105260.0,105250.0,0.23852794]
[1750728272312,0.49502469,105260.0,105250.0,0.23852794]
[1750728272559,0.21092706,105260.0,105250.0,0.2385274]
[1750728272735,0.21092706,105260.0,105250.0,0.2672274]
[1750728273077,0.19638621,105260.0,105250.0,0.2939274]
[1750728273350,0.00014621,105260.0,105250.0,0.2939274]
[1750728273562,0.19638621,105260.0,105250.0,0.2939274]
[1750728275675,0.04066621,105260.0,105250.0,0.2939274]
[1750728277269,0.00014621,105260.0,105250.0,0.2939274]
[1750728277479,0.04066621,105260.0,105250.0,0.2939274]
[1750728278837,0.04066621,105260.0,105250.0,0.67352689]
[1750728279745,0.04066621,105260.0,105250.0,0.67252689]
[1750728280093,0.04166621,105260.0,105250.0,0.67952689]
[1750728280501,0.04266621,105260.0,105250.0,0.68952689]
[1750728282493,0.00214621,105260.0,105250.0,0.68952689]
[1750728283259,0.00214621,105260.0,105250.0,0.69900898]
[1750728283482,0.00214621,105260.0,105250.0,0.41491135]
[1750728283681,0.00214621,105260.0,105250.0,0.69900898]
[1750728284357,0.00214621,105260.0,105250.0,0.75491135]
[1750728284578,0.00214621,105260.0,105250.0,1.03900898]
[1750728286180,0.0001,105270.0,105250.0,1.63230351]
[1750728286393,0.0001,105270.0,105260.0,1.45536343]
[1750728286603,0.0001,105280.0,105270.0,0.32478471]
[1750728286814,0.00056266,105280.0,105270.0,0.48658471]
[1750728287033,0.00056266,105280.0,105270.0,1.05477997]
[1750728287288,0.00056266,105280.0,105270.0,0.43658471]
[1750728287490,0.00056266,105280.0,105270.0,0.72068234]
[1750728287701,0.00056266,105280.0,105270.0,0.53208657]
[1750728288129,0.00156266,105280.0,105270.0,0.54708657]
[1750728288333,0.00156266,105280.0,105270.0,0.57509386]
[1750728288603,0.00256266,105280.0,105270.0,1.15228912]
[1750728289851,0.00256266,105280.0,105270.0,1.22794997]
[1750728290068,0.00256266,105280.0,105270.0,1.9520476]
[1750728290069,0.00246266,105280.0,105270.0,1.9520476]
[1750728290280,0.0001,105290.0,105280.0,0.71696394]
[1750728290491,0.0001,105290.0,105280.0,1.39520191]
[1750728290492,0.00018786,105290.0,105280.0,1.39520191]
[1750728290694,0.0001,105300.0,105290.0,0.89974319]
[1750728290906,0.0001,105300.0,105290.0,1.57798116]
[1750728291361,0.0001,105300.0,105290.0,0.94524505]
[1750728291567,0.0001,105300.0,105290.0,1.51344031]
[1750728291770,0.0001,105300.0,105290.0,0.76524505]
[1750728291976,0.0001,105300.0,105290.0,1.26410268]
[1750728292196,0.0001,105300.0,105290.0,1.14410268]
[1750728292427,0.0011,105300.0,105290.0,1.15610268]
[1750728293042,0.0011,105300.0,105290.0,0.87200505]
[1750728293251,0.0011,105300.0,105290.0,1.15610268]
[1750728293497,0.0011,105300.0,105290.0,1.15650268]
[1750728293770,0.0001,105300.0,105290.0,1.14450268]
[1750728294006,0.0001,105300.0,105290.0,0.98734268]
[1750728294222,0.0001,105300.0,105290.0,1.29917431]
[1750728294653,0.0001,105300.0,105290.0,1.31917431]
[1750728294851,0.0001,105300.0,105290.0,1.32917431]
[1750728295082,0.0001,105300.0,105290.0,1.33517431]
[1750728296302,0.0001,105300.0,105290.0,0.69894505]
[1750728296506,0.0001,105300.0,105290.0,0.85406505]
[1750728296825,0.0001,105300.0,105290.0,0.85006505]
[1750728297228,0.0001,105300.0,105290.0,0.68994505]
[1750728297434,0.0001,105300.0,105290.0,0.85486505]
[1750728298314,0.0001,105300.0,105290.0,0.88386505]
[1750728298767,0.0001,105300.0,105290.0,1.32693431]
[1750728298987,0.0001,105300.0,105290.0,0.88386505]
[1750728299193,0.0001,105300.0,105290.0,1.32693431]
[1750728299597,0.0001,105300.0,105290.0,1.37693431]
[1750728301446,0.0001,105300.0,105290.0,1.40547831]
[1750728304125,0.0001,105300.0,105290.0,0.96240905]
[1750728304336,0.0001,105300.0,105290.0,1.70167831]
[1750728306450,0.0001,105300.0,105290.0,1.71621916]
[1750728307272,0.0001,105300.0,105290.0,1.73525916]
[1750728307903,0.0001,105300.0,105290.0,1.78525916]
[1750728308109,0.0001,105300.0,105290.0,1.77825916]
[1750728308534,0.0001,105300.0,105290.0,1.79125916]
[1750728309399,0.0001,105300.0,105290.0,1.78625916]
[1750728310025,0.0001,105300.0,105290.0,1.77825916]
[1750728310240,0.0001,105300.0,105290.0,1.97825916]
[1750728310461,0.0001,105300.0,105290.0,1.98625916]
[1750728310873,0.0001,105300.0,105290.0,1.99425916]
[1750728311080,0.0001,105310.0,105300.0,0.28746245]
[1750728311290,0.0001,105310.0,105300.0,1.04855357]
[1750728312361,0.0001,105310.0,105300.0,1.39355357]
[1750728313010,0.0001,105310.0,105300.0,1.45809442]
[1750728313224,0.0001,105310.0,105300.0,1.90116368]
[1750728313664,0.0001,105310.0,105300.0,1.90716368]
[1750728314322,0.0001,105310.0,105300.0,1.58779502]
[1750728314742,0.0001,105310.0,105300.0,1.56875502]
[1750728316165,0.0001,105310.0,105300.0,1.86495502]
[1750728316833,0.0001,105310.0,105300.0,1.89349402]
[1750728318867,2.697e-05,105310.0,105300.0,1.89349402]
[1750728320328,2.697e-05,105310.0,105300.0,1.93913402]
[1750728320894,2.697e-05,105310.0,105300.0,1.72897402]
[1750728321107,2.697e-05,105310.0,105300.0,1.93897402]
[1750728321756,2.697e-05,105310.0,105300.0,1.88897402]
[1750728321958,2.697e-05,105310.0,105300.0,1.93897402]
[1750728323696,2.697e-05,105310.0,105300.0,2.03917402]
[1750728323921,0.05591254,105340.0,105330.0,1.12513011]
[1750728324141,0.05591254,105340.0,105330.0,1.38471197]
[1750728324142,0.05605126,105340.0,105330.0,1.38471197]
[1750728324562,0.02705126,105340.0,105330.0,1.38471197]
[1750728325727,0.00015126,105340.0,105330.0,1.4129701]
[1750728326163,0.00015126,105340.0,105330.0,1.4604101]
[1750728326399,0.00015126,105340.0,105330.0,1.8066101]
[1750728326614,0.00015126,105340.0,105330.0,1.8351101]
[1750728326820,0.00015126,105340.0,105330.0,1.8066101]
[1750728327663,0.00015126,105340.0,105330.0,1.8766101]
[1750728327898,0.00015126,105340.0,105330.0,1.9039101]
[1750728328330,0.00015126,105340.0,105330.0,1.9049101]
[1750728328537,0.00015126,105340.0,105330.0,1.9039101]
[1750728328967,0.00015126,105340.0,105330.0,1.8816101]
[1750728329825,0.00015126,105340.0,105330.0,1.8904701]
[1750728330041,0.00015126,105340.0,105330.0,1.32370024]
[1750728330269,0.00015126,105340.0,105330.0,1.8924701]
[1750728330483,0.00015126,105340.0,105330.0,1.90201705]
[1750728330691,0.00015126,105340.0,105330.0,1.95201705]
[1750728331718,0.00015126,105340.0,105330.0,1.99765705]
[1750728333013,0.00015126,105340.0,105330.0,2.0121979]
[1750728333827,0.00015126,105340.0,105330.0,2.2121979]
[1750728334525,0.00015126,105340.0,105330.0,2.2071979]
[1750728334709,0.00015126,105340.0,105330.0,2.1631979]
[1750728334905,0.00015126,105340.0,105330.0,2.2131979]
[1750728335121,0.00015126,105340.0,105330.0,2.2191979]
[1750728335355,0.0001,105350.0,105340.0,0.60972443]
[1750728335566,0.0001,105350.0,105340.0,0.84134629]
[1750728335981,0.0001,105350.0,105340.0,1.18088714]
[1750728336821,0.0001,105350.0,105340.0,1.49208714]
[1750728337248,0.0001,105350.0,105340.0,1.51938714]
[1750728337830,0.0001,105350.0,105340.0,1.52838714]
[1750728338237,0.0001,105350.0,105340.0,1.52338714]
[1750728338406,0.0001,105350.0,105340.0,1.51938714]
[1750728338803,0.0001,105350.0,105340.0,1.46888714]
[1750728339304,0.0001,105350.0,105340.0,1.47688714]
[1750728339503,0.0001,105350.0,105340.0,1.50528714]
[1750728339709,0.0001,105350.0,105340.0,1.53248714]
[1750728340227,0.0001,105350.0,105340.0,1.50528714]
[1750728340428,0.0001,105360.0,105350.0,0.26831877]
[1750728340632,0.0001,105360.0,105350.0,0.84108556]
[1750728341061,0.0001,105360.0,105350.0,0.81268556]
[1750728341255,0.0277,105360.0,105350.0,0.81268556]
[1750728341458,0.0277,105360.0,105350.0,0.76268556]
[1750728341728,0.0548,105360.0,105350.0,0.53330063]
[1750728342051,0.0277,105360.0,105350.0,0.81668556]
[1750728342262,0.0001,105360.0,105350.0,0.81668556]
[1750728342473,0.0001,105360.0,105350.0,0.82168556]
[1750728342875,0.0269,105360.0,105350.0,0.82168556]
[1750728343774,0.0269,105360.0,105350.0,0.53830063]
[1750728344237,0.0553,105360.0,105350.0,0.37282063]
[1750728344422,0.0553,105360.0,105350.0,0.82196556]
[1750728345695,0.0553,105360.0,105350.0,1.11816556]
[1750728346281,0.0553,105360.0,105350.0,0.83478063]
[1750728346474,0.0553,105360.0,105350.0,1.11816556]
[1750728347250,0.0553,105360.0,105350.0,0.83478063]
[1750728347463,0.0553,105360.0,105350.0,1.11816556]
[1750728347894,0.0269,105360.0,105350.0,1.11816556]
[1750728349916,0.0269,105360.0,105350.0,1.13720556]
[1750728350954,0.054,105360.0,105350.0,1.13720556]
[1750728351102,0.054,105360.0,105350.0,1.08720556]
[1750728352294,0.054,105360.0,105350.0,1.08692556]
[1750728353369,0.054,105360.0,105350.0,1.08684556]
[1750728353568,0.054,105360.0,105350.0,0.80346063]
[1750728353999,0.054,105360.0,105350.0,1.08684556]
[1750728354566,0.054,105360.0,105350.0,0.78442063]
[1750728354772,0.054,105360.0,105350.0,1.06780556]
[1750728355412,0.33738493,105360.0,105350.0,0.32282063]
[1750728355617,0.33738493,105360.0,105350.0,0.39279877]
[1750728355849,0.054,105360.0,105350.0,0.39279877]
[1750728356666,0.054,105360.0,105350.0,0.38779877]
[1750728356885,0.33738493,105360.0,105350.0,0.38379877]
[1750728357100,0.054,105360.0,105350.0,0.38479877]
[1750728357309,0.054,105360.0,105350.0,0.38579877]
[1750728357931,0.054,105360.0,105350.0,0.38479877]
[1750728358345,0.054,105360.0,105350.0,0.38363877]
[1750728359666,0.054,105360.0,105350.0,0.21831877]
[1750728359817,0.054,105360.0,105350.0,0.38363877]
[1750728364553,0.33738493,105360.0,105350.0,0.38339877]
[1750728365965,0.054,105360.0,105350.0,0.38339877]
[1750728366120,0.33738493,105360.0,105350.0,0.38339877]
[1750728366316,0.054,105360.0,105350.0,0.38339877]
[1750728369124,0.054,105360.0,105350.0,0.47890063]
[1750728376694,0.054,105360.0,105350.0,0.21831877]
[1750728376939,0.054,105360.0,105350.0,0.38303877]
[1750728378333,0.054,105360.0,105350.0,0.6664237]
[1750728378751,0.054,105360.0,105350.0,0.38303877]
[1750728380369,0.054,105360.0,105350.0,0.38269201]
[1750728381438,0.054,105360.0,105350.0,0.7615788]
[1750728382528,0.054,105360.0,105350.0,0.47819387]
[1750728383697,0.054,105360.0,105350.0,0.47759387]
[1750728388165,0.054,105360.0,105350.0,0.47715387]
[1750728389844,0.054,105360.0,105350.0,0.38161201]
[1750728390048,0.054,105360.0,105350.0,0.38149201]
[1750728393709,0.054,105360.0,105350.0,0.7603788]
[1750728394328,0.054,105360.0,105350.0,0.54699387]
[1750728395842,0.054,105360.0,105350.0,0.47699387]
[1750728398680,0.054,105360.0,105350.0,0.7603788]
[1750728402686,0.054,105360.0,105350.0,0.7623788]
[1750728403432,0.0269,105360.0,105350.0,0.7623788]
[1750728403856,0.0269,105360.0,105350.0,0.47899387]
[1750728404212,0.0269,105360.0,105350.0,0.7623788]
[1750728404785,0.0269,105360.0,105350.0,1.1023788]
[1750728406338,0.0269,105360.0,105350.0,0.81899387]
[1750728406552,0.0269,105360.0,105350.0,1.1023788]
[1750728407622,0.0424,105360.0,105350.0,1.1023788]
[1750728407842,0.0424,105360.0,105350.0,0.81899387]
[1750728408062,0.0424,105360.0,105350.0,1.1023788]
[1750728416370,0.0424,105360.0,105350.0,0.84335694]
[1750728416544,0.0424,105360.0,105350.0,1.00523694]
[1750728420540,0.0424,105360.0,105350.0,1.1007388]
[1750728423003,0.0424,105360.0,105350.0,0.81735387]
[1750728423211,0.0424,105360.0,105350.0,1.1007388]
[1750728423419,0.0424,105360.0,105350.0,0.65547387]
[1750728423632,0.0424,105360.0,105350.0,0.81687387]
[1750728423831,0.0424,105360.0,105350.0,0.47687387]
[1750728424300,0.0424,105360.0,105350.0,0.7602588]
[1750728424731,0.0424,105360.0,105350.0,0.47687387]
[1750728424911,0.0424,105360.0,105350.0,0.7602588]
[1750728429214,0.0424,105360.0,105350.0,0.76016757]
[1750728430653,0.0424,105360.0,105350.0,0.59876757]
[1750728432002,0.0424,105360.0,105350.0,0.76048757]
[1750728433622,0.0424,105360.0,105350.0,0.75948757]
[1750728433925,0.0269,105360.0,105350.0,1.09948757]
[1750728434118,0.0001,105360.0,105350.0,1.11768757]
[1750728435574,0.0156,105360.0,105350.0,1.10148757]
[1750728436582,0.0156,105360.0,105350.0,1.10448757]
[1750728437231,0.0156,105360.0,105350.0,1.12028757]
[1750728438750,0.0001,105360.0,105350.0,1.13668757]
[1750728438954,0.0001,105360.0,105350.0,1.12028757]
[1750728439181,0.0166,105360.0,105350.0,1.12028757]
[1750728439373,0.0166,105360.0,105350.0,0.83690264]
[1750728439614,0.0166,105360.0,105350.0,1.12028757]
[1750728440911,0.0001,105360.0,105350.0,1.13668757]
[1750728442235,0.0001,105360.0,105350.0,1.4226725]
[1750728442444,0.0001,105360.0,105350.0,1.5226725]
[1750728442643,0.0001,105360.0,105350.0,1.6361915]
[1750728443629,0.0001,105360.0,105350.0,1.35020657]
[1750728443828,0.0001,105360.0,105350.0,1.34720657]
[1750728444037,0.0001,105360.0,105350.0,1.35120657]
[1750728445174,0.0001,105360.0,105350.0,1.34820657]
[1750728445383,0.0001,105360.0,105350.0,1.35320657]
[1750728446326,0.0001,105360.0,105350.0,1.64940657]
[1750728447845,0.0001,105360.0,105350.0,1.9327915]
[1750728451492,0.0001,105360.0,105350.0,1.58300657]
[1750728451698,0.0159,105360.0,105350.0,1.58300657]
[1750728451924,0.0159,105360.0,105350.0,1.9163915]
[1750728452140,0.0159,105360.0,105350.0,1.63300657]
[1750728452397,0.0159,105360.0,105350.0,1.88060052]
[1750728452924,0.0159,105360.0,105350.0,1.71888052]
[1750728453131,0.0159,105360.0,105350.0,1.92376052]
[1750728454348,0.0159,105360.0,105350.0,1.67596364]
[1750728455665,0.0159,105360.0,105350.0,1.62596364]
[1750728455888,0.0159,105360.0,105350.0,1.67596364]
[1750728456310,0.0311,105360.0,105350.0,0.63438264]
[1750728456519,0.0311,105360.0,105350.0,0.79522264]
[1750728456679,0.0311,105360.0,105350.0,1.40260464]
[1750728456888,0.0311,105360.0,105350.0,1.06260464]
[1750728457083,0.0311,105360.0,105350.0,1.05860464]
[1750728457288,0.0311,105360.0,105350.0,1.39860464]
[1750728457491,0.0311,105360.0,105350.0,1.40160464]
[1750728457893,0.0311,105360.0,105350.0,1.39860464]
[1750728458167,0.0311,105360.0,105350.0,1.10240464]
[1750728458691,0.0311,105360.0,105350.0,1.09740464]
[1750728459068,0.0311,105360.0,105350.0,0.81722264]
[1750728459294,0.0311,105360.0,105350.0,0.81422264]
[1750728459509,0.0311,105360.0,105350.0,1.09840464]
[1750728459723,0.0311,105360.0,105350.0,1.09940464]
[1750728460266,0.0311,105360.0,105350.0,0.65538264]
[1750728460475,0.0311,105360.0,105350.0,1.09928464]
[1750728463457,0.0311,105360.0,105350.0,1.09916464]
[1750728466191,0.0311,105360.0,105350.0,0.81598264]
[1750728466395,0.0311,105360.0,105350.0,1.09816464]
[1750728466787,0.0311,105360.0,105350.0,1.10116464]
[1750728468604,0.0311,105360.0,105350.0,1.10016464]
[1750728468982,0.0311,105360.0,105350.0,1.10316464]
[1750728472692,0.0311,105360.0,105350.0,0.81998264]
[1750728472885,0.0311,105360.0,105350.0,1.10316464]
[1750728473160,0.0311,105360.0,105350.0,0.81998264]
[1750728473379,0.0311,105360.0,105350.0,1.10316464]
[1750728474047,0.0311,105360.0,105350.0,1.10248464]
[1750728475201,0.0311,105360.0,105350.0,0.94256464]
[1750728475424,0.0311,105360.0,105350.0,1.10248464]
[1750728476667,0.0311,105360.0,105350.0,1.10244464]
[1750728480048,0.0311,105360.0,105350.0,0.81926264]
[1750728480257,0.0311,105360.0,105350.0,1.10244464]
[1750728482348,0.0311,105360.0,105350.0,1.0848305]
[1750728489728,0.0311,105360.0,105350.0,0.56388078]
[1750728489936,0.0311,105360.0,105350.0,0.98900864]
[1750728490359,0.0311,105360.0,105350.0,0.72344078]
[1750728490575,0.0311,105360.0,105350.0,0.98900864]
[1750728490997,0.0311,105360.0,105350.0,0.98600864]
[1750728491870,0.0311,105360.0,105350.0,0.82744864]
[1750728492099,0.0311,105360.0,105350.0,0.71828078]
[1750728492316,0.0311,105360.0,105350.0,0.98384864]
[1750728493195,0.0311,105360.0,105350.0,0.98484864]
[1750728493448,0.0311,105360.0,105350.0,0.82544864]
[1750728493654,0.0311,105360.0,105350.0,0.71928078]
[1750728493861,0.0311,105360.0,105350.0,0.98484864]
[1750728494503,0.0311,105360.0,105350.0,1.00258526]
[1750728496225,0.0311,105360.0,105350.0,1.00242526]
[1750728501253,0.0311,105360.0,105350.0,1.09792712]
[1750728503924,0.0001,105360.0,105350.0,1.09792712]
[1750728504150,0.0001,105360.0,105350.0,1.11292712]
[1750728506989,0.0001,105360.0,105350.0,1.09792712]
[1750728507192,0.0157,105360.0,105350.0,1.09792712]
[1750728511741,0.0323,105360.0,105350.0,1.09792712]
[1750728511964,0.0323,105360.0,105350.0,0.93868712]
[1750728512196,0.0323,105360.0,105350.0,1.09772712]
[1750728513896,0.0323,105360.0,105350.0,0.81442264]
[1750728514098,0.0323,105360.0,105350.0,1.09772712]
[1750728515298,0.0323,105360.0,105350.0,0.81442264]
[1750728515523,0.0323,105360.0,105350.0,1.09772712]
[1750728516315,0.0323,105360.0,105350.0,1.07999289]
[1750728521103,0.0323,105360.0,105350.0,1.07970079]
[1750728521695,0.0157,105360.0,105350.0,1.07970079]
[1750728521890,0.0157,105360.0,105350.0,1.34527104]
[1750728523160,0.0321,105360.0,105350.0,1.07970079]
[1750728523713,0.03214621,105360.0,105350.0,1.07970079]
[1750728525340,0.01574621,105360.0,105350.0,1.07970079]
[1750728527603,0.01574621,105360.0,105350.0,1.34527104]
[1750728527810,0.01574621,105360.0,105350.0,1.07970079]
[1750728528864,0.01574621,105360.0,105350.0,1.34527104]
[1750728529556,0.03184621,105360.0,105350.0,0.81413054]
[1750728529786,0.03184621,105360.0,105350.0,1.07970079]
[1750728535503,0.03184621,105360.0,105350.0,0.92066079]
[1750728535737,0.03184621,105360.0,105350.0,1.07962079]